[Event "Late-Titled-Tuesday-Blitz-September-12-2023"]
[Site "Chess.com"]
[Date "2023.09.12"]
[Round "7"]
[White "MBA_CHESS_2021"]
[Black "WilliamAlfaroCaracas"]
[Result "0-1"]
[WhiteElo "2210"]
[BlackElo "2275"]
[TimeControl "180+1"]
[EndTime "15:13:36 PDT"]
[Termination "WilliamAlfaroCaracas won on time"]

1. e4 {[%clk 0:02:59.9]} 1... e5 {[%clk 0:02:58.7]} 2. Nf3 {[%clk 0:02:58.5]}
2... Nc6 {[%clk 0:02:58.6]} 3. Bc4 {[%clk 0:02:58]} 3... Bc5 {[%clk 0:02:56.9]}
4. O-O {[%clk 0:02:57.5]} 4... Nf6 {[%clk 0:02:51.9]} 5. b4 {[%clk 0:02:56.9]}
5... Bxb4 {[%clk 0:02:43.5]} 6. c3 {[%clk 0:02:57.2]} 6... Ba5 {[%clk
0:02:39.9]} 7. d4 {[%clk 0:02:55.3]} 7... Qe7 {[%clk 0:02:13.9]} 8. d5 {[%clk
0:02:10.3]} 8... Nd8 {[%clk 0:02:02.2]} 9. Ba3 {[%clk 0:02:09]} 9... d6 {[%clk
0:02:01.5]} 10. Qa4+ {[%clk 0:02:08.2]} 10... Bd7 {[%clk 0:01:46.6]} 11. Qxa5
{[%clk 0:02:06.7]} 11... Nxe4 {[%clk 0:01:47]} 12. Re1 {[%clk 0:01:57.2]} 12...
f5 {[%clk 0:01:38.3]} 13. Nbd2 {[%clk 0:01:47.5]} 13... O-O {[%clk 0:01:37.2]}
14. Nxe4 {[%clk 0:01:38.6]} 14... fxe4 {[%clk 0:01:36.6]} 15. Rxe4 {[%clk
0:01:38]} 15... Rxf3 {[%clk 0:01:31]} 16. gxf3 {[%clk 0:01:36.9]} 16... Qg5+
{[%clk 0:01:31.7]} 17. Kf1 {[%clk 0:01:33.1]} 17... b6 {[%clk 0:00:57.7]} 18.
Qb4 {[%clk 0:01:24.6]} 18... Nb7 {[%clk 0:00:56.4]} 19. Qb2 {[%clk 0:01:23.7]}
19... Rf8 {[%clk 0:00:53.9]} 20. Qc1 {[%clk 0:00:39.9]} 20... Bh3+ {[%clk
0:00:51.2]} 21. Ke2 {[%clk 0:00:38.9]} 21... Qh5 {[%clk 0:00:48.2]} 22. Qe3
{[%clk 0:00:36.9]} 22... Bg2 {[%clk 0:00:46.6]} 23. Kd2 {[%clk 0:00:13.2]} 23...
Rxf3 {[%clk 0:00:44]} 24. Be2 {[%clk 0:00:12.7]} 24... Rxe3 {[%clk 0:00:42.6]}
25. Rxe3 {[%clk 0:00:11.2]} 25... Qxh2 {[%clk 0:00:34.3]} 26. Rg3 {[%clk
0:00:10]} 26... Bxd5 {[%clk 0:00:32.2]} 27. Rag1 {[%clk 0:00:09.5]} 27... Qh6+
{[%clk 0:00:30.8]} 28. Kc2 {[%clk 0:00:07.4]} 28... Be4+ {[%clk 0:00:29.2]} 29.
Kb3 {[%clk 0:00:07.2]} 29... Na5+ {[%clk 0:00:28.1]} 30. Ka4 {[%clk 0:00:06.1]}
30... Bc2+ {[%clk 0:00:22.9]} 31. Kb5 {[%clk 0:00:04.4]} 31... c6+ {[%clk
0:00:20.4]} 32. Ka6 {[%clk 0:00:04]} 32... Bg6 {[%clk 0:00:15.5]} 33. Kxa7
{[%clk 0:00:02.6]} 33... Qf4 {[%clk 0:00:15.3]} 0-1

[Event "Late-Titled-Tuesday-Blitz-September-12-2023"]
[Site "Chess.com"]
[Date "2023.09.12"]
[Round "7"]
[White "rookoco"]
[Black "Joshukid"]
[Result "1-0"]
[WhiteElo "2715"]
[BlackElo "2541"]
[TimeControl "180+1"]
[EndTime "15:13:37 PDT"]
[Termination "rookoco won on time"]

1. Nc3 {[%clk 0:03:00.9]} 1... d5 {[%clk 0:02:56.8]} 2. e4 {[%clk 0:03:00.6]}
2... c6 {[%clk 0:02:55]} 3. Nf3 {[%clk 0:02:58.3]} 3... dxe4 {[%clk 0:02:55]} 4.
Nxe4 {[%clk 0:02:58.1]} 4... Nf6 {[%clk 0:02:55.8]} 5. Qe2 {[%clk 0:02:58.4]}
5... Nxe4 {[%clk 0:02:55.8]} 6. Qxe4 {[%clk 0:02:59.3]} 6... Qa5 {[%clk
0:02:56]} 7. Bd3 {[%clk 0:02:53.4]} 7... Nd7 {[%clk 0:02:50.6]} 8. b4 {[%clk
0:02:52.8]} 8... Qd5 {[%clk 0:02:47]} 9. Qe2 {[%clk 0:02:46]} 9... e6 {[%clk
0:02:42.8]} 10. a3 {[%clk 0:02:40.9]} 10... Bd6 {[%clk 0:02:39.4]} 11. Bb2
{[%clk 0:02:40.4]} 11... O-O {[%clk 0:02:39.7]} 12. Be4 {[%clk 0:02:36.2]} 12...
Qh5 {[%clk 0:02:37.4]} 13. g4 {[%clk 0:02:34.1]} 13... Qh6 {[%clk 0:02:35.2]}
14. g5 {[%clk 0:02:33.8]} 14... Qh5 {[%clk 0:02:34.9]} 15. h4 {[%clk 0:02:30.5]}
15... c5 {[%clk 0:02:26.3]} 16. Rg1 {[%clk 0:02:19.7]} 16... cxb4 {[%clk
0:02:24.7]} 17. g6 {[%clk 0:02:18.4]} 17... fxg6 {[%clk 0:02:22.4]} 18. Rg5
{[%clk 0:02:17.4]} 18... Qh6 {[%clk 0:02:15.7]} 19. axb4 {[%clk 0:02:12.4]}
19... Bf4 {[%clk 0:02:15]} 20. Rga5 {[%clk 0:02:07.2]} 20... g5 {[%clk
0:02:02.3]} 21. Nxg5 {[%clk 0:01:57.1]} 21... Qxh4 {[%clk 0:01:41.7]} 22. Nxe6
{[%clk 0:01:41]} 22... Bxd2+ {[%clk 0:01:39.5]} 23. Kd1 {[%clk 0:01:01.9]} 23...
Rxf2 {[%clk 0:01:37.3]} 24. Bxh7+ {[%clk 0:01:01.3]} 24... Qxh7 {[%clk
0:01:04.6]} 25. Qxf2 {[%clk 0:00:58.8]} 25... Bxb4 {[%clk 0:01:04.8]} 26. Rg5
{[%clk 0:00:29.3]} 26... Qh1+ {[%clk 0:01:03.7]} 27. Rg1 {[%clk 0:00:24.3]}
27... Qh5+ {[%clk 0:00:29]} 28. Kc1 {[%clk 0:00:23.5]} 28... g6 {[%clk
0:00:09.5]} 29. Kb1 {[%clk 0:00:15.8]} 29... Nf8 {[%clk 0:00:05.4]} 30. Nxf8
{[%clk 0:00:13.4]} 30... Bxf8 {[%clk 0:00:06.3]} 31. Qf6 {[%clk 0:00:12.9]}
31... Bf5 {[%clk 0:00:05.6]} 32. Ra5 {[%clk 0:00:12.8]} 32... Bxc2+ {[%clk
0:00:04.8]} 33. Kxc2 {[%clk 0:00:11.4]} 33... Rc8+ {[%clk 0:00:03.6]} 34. Kb1
{[%clk 0:00:10.6]} 1-0

[Event "Late-Titled-Tuesday-Blitz-September-12-2023"]
[Site "Chess.com"]
[Date "2023.09.12"]
[Round "7"]
[White "GothamChess"]
[Black "TatjanaVasilevich"]
[Result "1-0"]
[WhiteElo "2736"]
[BlackElo "2588"]
[TimeControl "180+1"]
[EndTime "15:13:38 PDT"]
[Termination "GothamChess won by checkmate"]

1. e4 {[%clk 0:03:00.9]} 1... c5 {[%clk 0:02:59.7]} 2. Nc3 {[%clk 0:03:00.9]}
2... Nc6 {[%clk 0:02:59.8]} 3. Bb5 {[%clk 0:03:00.6]} 3... g6 {[%clk 0:02:58.4]}
4. Bxc6 {[%clk 0:03:00.7]} 4... bxc6 {[%clk 0:02:57.4]} 5. d3 {[%clk 0:03:01.1]}
5... Bg7 {[%clk 0:02:57.8]} 6. f4 {[%clk 0:03:01.6]} 6... Rb8 {[%clk 0:02:57.7]}
7. Nf3 {[%clk 0:03:01.5]} 7... d6 {[%clk 0:02:57.9]} 8. O-O {[%clk 0:03:01.2]}
8... Nf6 {[%clk 0:02:58.4]} 9. Qe1 {[%clk 0:03:01]} 9... O-O {[%clk 0:02:58.4]}
10. b3 {[%clk 0:02:59.4]} 10... Qa5 {[%clk 0:02:56.2]} 11. Bd2 {[%clk
0:02:59.3]} 11... Qc7 {[%clk 0:02:55.5]} 12. Kh1 {[%clk 0:02:58.8]} 12... e5
{[%clk 0:02:55.7]} 13. fxe5 {[%clk 0:02:53.6]} 13... dxe5 {[%clk 0:02:55.6]} 14.
Qh4 {[%clk 0:02:48.1]} 14... Ne8 {[%clk 0:02:43.2]} 15. Bh6 {[%clk 0:02:42.7]}
15... Be6 {[%clk 0:02:36.1]} 16. Bxg7 {[%clk 0:02:33.8]} 16... Nxg7 {[%clk
0:02:35.7]} 17. Qf6 {[%clk 0:02:25.9]} 17... Qa5 {[%clk 0:02:33.4]} 18. Ne2
{[%clk 0:02:18.6]} 18... Rbe8 {[%clk 0:02:31.2]} 19. Nxe5 {[%clk 0:01:50.2]}
19... Qd2 {[%clk 0:02:26.6]} 20. Nf4 {[%clk 0:01:47.5]} 20... Qxc2 {[%clk
0:02:17.4]} 21. Nxc6 {[%clk 0:01:45.5]} 21... h5 {[%clk 0:01:57.8]} 22. Ne7+
{[%clk 0:01:35.7]} 22... Rxe7 {[%clk 0:01:57]} 23. Qxe7 {[%clk 0:01:34.8]} 23...
a5 {[%clk 0:01:48.3]} 24. Qf6 {[%clk 0:01:06.7]} 24... Ne8 {[%clk 0:01:42.7]}
25. Qg5 {[%clk 0:01:00.4]} 25... Ng7 {[%clk 0:01:34.6]} 26. Qf6 {[%clk
0:00:43.3]} 26... Ne8 {[%clk 0:01:33.5]} 27. Qe5 {[%clk 0:00:43.5]} 27... Ng7
{[%clk 0:01:30.1]} 28. Rac1 {[%clk 0:00:41.7]} 28... Qxa2 {[%clk 0:01:30.1]} 29.
Rxc5 {[%clk 0:00:40.6]} 29... Qxb3 {[%clk 0:01:29.2]} 30. Rxa5 {[%clk
0:00:39.8]} 30... f6 {[%clk 0:01:28.1]} 31. Nxe6 {[%clk 0:00:19.5]} 31... Qxd3
{[%clk 0:01:11.1]} 32. Qa1 {[%clk 0:00:09.8]} 32... Nxe6 {[%clk 0:01:09.4]} 33.
e5 {[%clk 0:00:09.2]} 33... fxe5 {[%clk 0:01:04]} 34. Rxf8+ {[%clk 0:00:08.8]}
34... Nxf8 {[%clk 0:01:04]} 35. Rxe5 {[%clk 0:00:08.9]} 35... Qd7 {[%clk
0:01:01.1]} 36. Qa2+ {[%clk 0:00:08.2]} 36... Qf7 {[%clk 0:01:00.1]} 37. Qe2
{[%clk 0:00:08]} 37... Qf6 {[%clk 0:00:57.4]} 38. h3 {[%clk 0:00:07.3]} 38...
Nd7 {[%clk 0:00:57.2]} 39. Re8+ {[%clk 0:00:06.8]} 39... Nf8 {[%clk 0:00:57.1]}
40. Re7 {[%clk 0:00:06.7]} 40... Qa1+ {[%clk 0:00:56.9]} 41. Kh2 {[%clk
0:00:06.6]} 41... Qf6 {[%clk 0:00:57.6]} 42. Qc4+ {[%clk 0:00:05]} 42... Kh8
{[%clk 0:00:57.8]} 43. Qe4 {[%clk 0:00:04]} 43... Kg8 {[%clk 0:00:57]} 44. Qd5+
{[%clk 0:00:03.6]} 44... Kh8 {[%clk 0:00:57.1]} 45. Rf7 {[%clk 0:00:04.2]} 45...
Qd8 {[%clk 0:00:45.4]} 46. Qxd8 {[%clk 0:00:03.8]} 46... Kg8 {[%clk 0:00:44.6]}
47. Qxf8# {[%clk 0:00:03.9]} 1-0

[Event "Late-Titled-Tuesday-Blitz-September-12-2023"]
[Site "Chess.com"]
[Date "2023.09.12"]
[Round "7"]
[White "Harald_Schmidt"]
[Black "a-z30"]
[Result "1-0"]
[WhiteElo "2293"]
[BlackElo "2407"]
[TimeControl "180+1"]
[EndTime "15:13:38 PDT"]
[Termination "Harald_Schmidt won by resignation"]

1. e4 {[%clk 0:02:59.2]} 1... d6 {[%clk 0:03:00.9]} 2. d4 {[%clk 0:02:58.4]}
2... Nf6 {[%clk 0:03:01.1]} 3. Nc3 {[%clk 0:02:59.3]} 3... g6 {[%clk 0:03:01.5]}
4. Bg5 {[%clk 0:02:58]} 4... Bg7 {[%clk 0:03:01.7]} 5. Qd2 {[%clk 0:02:57.7]}
5... h6 {[%clk 0:03:01.7]} 6. Be3 {[%clk 0:02:57.3]} 6... c6 {[%clk 0:03:01.8]}
7. h3 {[%clk 0:02:56.4]} 7... Nbd7 {[%clk 0:03:01.7]} 8. O-O-O {[%clk
0:02:52.2]} 8... Qc7 {[%clk 0:03:01.4]} 9. f4 {[%clk 0:02:50.1]} 9... b5 {[%clk
0:02:55.7]} 10. e5 {[%clk 0:02:48.6]} 10... b4 {[%clk 0:02:55.2]} 11. Nce2
{[%clk 0:02:28.9]} 11... Nd5 {[%clk 0:02:54.5]} 12. g3 {[%clk 0:02:20.9]} 12...
N7b6 {[%clk 0:02:28.2]} 13. Bf2 {[%clk 0:02:13.7]} 13... Nc4 {[%clk 0:02:25.4]}
14. Qd3 {[%clk 0:02:11.7]} 14... Ba6 {[%clk 0:01:58.5]} 15. b3 {[%clk
0:02:06.1]} 15... Qa5 {[%clk 0:01:57.6]} 16. bxc4 {[%clk 0:02:05.3]} 16... Nc3
{[%clk 0:01:54.9]} 17. Kd2 {[%clk 0:01:53.4]} 17... Nxd1 {[%clk 0:01:39.5]} 18.
Kxd1 {[%clk 0:01:52.8]} 18... d5 {[%clk 0:01:36.8]} 19. e6 {[%clk 0:01:34.4]}
19... f5 {[%clk 0:01:32.7]} 20. Nf3 {[%clk 0:01:26.3]} 20... Bxc4 {[%clk
0:01:31.5]} 21. Qd2 {[%clk 0:01:25.9]} 21... O-O {[%clk 0:01:15.5]} 22. Nc1
{[%clk 0:01:25.1]} 22... Bxa2 {[%clk 0:01:12.2]} 23. Ne5 {[%clk 0:01:11.9]}
23... Bxe5 {[%clk 0:01:07.4]} 24. fxe5 {[%clk 0:01:10.5]} 24... Kg7 {[%clk
0:00:46]} 25. Be3 {[%clk 0:01:06.1]} 25... Rh8 {[%clk 0:00:42.9]} 26. g4 {[%clk
0:01:05.5]} 26... Raf8 {[%clk 0:00:17.3]} 27. gxf5 {[%clk 0:01:04.3]} 27... Rxf5
{[%clk 0:00:18.2]} 28. Bd3 {[%clk 0:01:03.6]} 28... Rh5 {[%clk 0:00:12]} 29. Rg1
{[%clk 0:01:02.8]} 29... g5 {[%clk 0:00:12.4]} 30. Bxg5 {[%clk 0:00:51.3]} 30...
hxg5 {[%clk 0:00:12.2]} 31. Rxg5+ {[%clk 0:00:50.6]} 31... Kf8 {[%clk 0:00:10]}
32. Qf4+ {[%clk 0:00:32.3]} 32... Ke8 {[%clk 0:00:10.4]} 33. Rxh5 {[%clk
0:00:30.5]} 33... Rxh5 {[%clk 0:00:07.6]} 34. Bg6+ {[%clk 0:00:29.1]} 34... Kd8
{[%clk 0:00:08.5]} 35. Bxh5 {[%clk 0:00:28.4]} 35... b3 {[%clk 0:00:08]} 36.
Qf8+ {[%clk 0:00:27.2]} 36... Kc7 {[%clk 0:00:08.4]} 37. Qxe7+ {[%clk
0:00:27.8]} 37... Kb6 {[%clk 0:00:06.2]} 38. Qc5+ {[%clk 0:00:26.5]} 38... Qxc5
{[%clk 0:00:06.4]} 39. dxc5+ {[%clk 0:00:26.1]} 39... Kxc5 {[%clk 0:00:07.3]}
40. cxb3 {[%clk 0:00:25.6]} 1-0

[Event "Late-Titled-Tuesday-Blitz-September-12-2023"]
[Site "Chess.com"]
[Date "2023.09.12"]
[Round "7"]
[White "Lennis93"]
[Black "ozates"]
[Result "0-1"]
[WhiteElo "2706"]
[BlackElo "2574"]
[TimeControl "180+1"]
[EndTime "15:13:40 PDT"]
[Termination "ozates won on time"]

1. Nf3 {[%clk 0:03:00.9]} 1... Nc6 {[%clk 0:02:49.4]} 2. e4 {[%clk 0:02:59.4]}
2... e5 {[%clk 0:02:48.4]} 3. Bc4 {[%clk 0:02:53.7]} 3... Bc5 {[%clk 0:02:47.9]}
4. b4 {[%clk 0:02:49.3]} 4... Bxb4 {[%clk 0:02:45.7]} 5. c3 {[%clk 0:02:49.9]}
5... Ba5 {[%clk 0:02:45.9]} 6. d4 {[%clk 0:02:50.6]} 6... d6 {[%clk 0:02:46.4]}
7. Qb3 {[%clk 0:02:48.8]} 7... Qd7 {[%clk 0:02:46.6]} 8. O-O {[%clk 0:02:46.9]}
8... Nf6 {[%clk 0:02:41.6]} 9. dxe5 {[%clk 0:02:47]} 9... Nxe4 {[%clk
0:02:02.2]} 10. Ba3 {[%clk 0:02:36.4]} 10... O-O {[%clk 0:01:59.7]} 11. Bd5
{[%clk 0:02:25.2]} 11... Nc5 {[%clk 0:01:58.1]} 12. Bxc5 {[%clk 0:02:22.2]}
12... dxc5 {[%clk 0:01:58.5]} 13. Rd1 {[%clk 0:02:15.7]} 13... Qf5 {[%clk
0:01:56]} 14. Bxc6 {[%clk 0:02:09.4]} 14... bxc6 {[%clk 0:01:56]} 15. Nbd2
{[%clk 0:02:03.8]} 15... Be6 {[%clk 0:01:52.9]} 16. Qa3 {[%clk 0:02:04.1]} 16...
Bb6 {[%clk 0:01:44.4]} 17. Nb3 {[%clk 0:01:59.8]} 17... Bd5 {[%clk 0:01:34.4]}
18. Nbd2 {[%clk 0:01:50.5]} 18... c4 {[%clk 0:01:27.1]} 19. Re1 {[%clk
0:01:44.1]} 19... g5 {[%clk 0:01:21.2]} 20. Re2 {[%clk 0:01:42.5]} 20... g4
{[%clk 0:01:19.2]} 21. Nd4 {[%clk 0:01:41.6]} 21... Bxd4 {[%clk 0:01:18.8]} 22.
cxd4 {[%clk 0:01:42.5]} 22... Rab8 {[%clk 0:01:17.7]} 23. Rae1 {[%clk
0:01:40.4]} 23... Kh8 {[%clk 0:01:14]} 24. Qc1 {[%clk 0:01:35.9]} 24... Qe6
{[%clk 0:00:59.7]} 25. Ne4 {[%clk 0:01:35.1]} 25... Rb6 {[%clk 0:00:52.4]} 26.
Nf6 {[%clk 0:01:32.7]} 26... Rfb8 {[%clk 0:00:46.4]} 27. Qh6 {[%clk 0:01:31.9]}
27... Qf5 {[%clk 0:00:46.9]} 28. h3 {[%clk 0:01:22]} 28... Qg6 {[%clk
0:00:44.3]} 29. Qxg6 {[%clk 0:01:19.9]} 29... hxg6 {[%clk 0:00:45.2]} 30. hxg4
{[%clk 0:01:20.4]} 30... Rb1 {[%clk 0:00:43.7]} 31. f3 {[%clk 0:00:57.4]} 31...
c3 {[%clk 0:00:43.2]} 32. Rxb1 {[%clk 0:00:56.9]} 32... Rxb1+ {[%clk 0:00:42.6]}
33. Kf2 {[%clk 0:00:57.5]} 33... Rb2 {[%clk 0:00:39.7]} 34. Ke3 {[%clk 0:00:19]}
34... c2 {[%clk 0:00:38.5]} 35. Rxc2 {[%clk 0:00:04.4]} 35... Rxc2 {[%clk
0:00:39.4]} 36. g3 {[%clk 0:00:02.2]} 36... Rc3+ {[%clk 0:00:34.5]} 37. Kf4
{[%clk 0:00:02.6]} 37... Rxf3+ {[%clk 0:00:30.4]} 38. Kg5 {[%clk 0:00:03.5]}
38... Rxf6 {[%clk 0:00:27.1]} 0-1

[Event "Late-Titled-Tuesday-Blitz-September-12-2023"]
[Site "Chess.com"]
[Date "2023.09.12"]
[Round "7"]
[White "Alphafischer2019"]
[Black "Sinquefield"]
[Result "1-0"]
[WhiteElo "2561"]
[BlackElo "2441"]
[TimeControl "180+1"]
[EndTime "15:13:41 PDT"]
[Termination "Alphafischer2019 won by resignation"]

1. d4 {[%clk 0:03:00.9]} 1... d6 {[%clk 0:02:55.8]} 2. e4 {[%clk 0:03:00.4]}
2... Nf6 {[%clk 0:02:56.7]} 3. Nc3 {[%clk 0:03:00.6]} 3... e5 {[%clk 0:02:56.5]}
4. dxe5 {[%clk 0:03:00.1]} 4... dxe5 {[%clk 0:02:57.4]} 5. Qxd8+ {[%clk
0:03:00.5]} 5... Kxd8 {[%clk 0:02:58.3]} 6. Bc4 {[%clk 0:03:00.3]} 6... Be6
{[%clk 0:02:58.8]} 7. Bxe6 {[%clk 0:03:00.4]} 7... fxe6 {[%clk 0:02:59.7]} 8. f3
{[%clk 0:03:00.7]} 8... Bb4 {[%clk 0:02:51.3]} 9. Bd2 {[%clk 0:02:59.5]} 9... c6
{[%clk 0:02:51]} 10. Nh3 {[%clk 0:02:59.2]} 10... h6 {[%clk 0:02:49.4]} 11. Nf2
{[%clk 0:02:59.8]} 11... Nbd7 {[%clk 0:02:48.2]} 12. Nd3 {[%clk 0:03:00.5]}
12... Be7 {[%clk 0:02:48.2]} 13. a4 {[%clk 0:03:01.3]} 13... Kc7 {[%clk
0:02:37]} 14. Ke2 {[%clk 0:02:46.8]} 14... g5 {[%clk 0:02:36.3]} 15. h3 {[%clk
0:02:45.3]} 15... Nh5 {[%clk 0:02:35.8]} 16. Rhd1 {[%clk 0:02:33.6]} 16... Nf4+
{[%clk 0:02:32.4]} 17. Bxf4 {[%clk 0:02:06.2]} 17... exf4 {[%clk 0:02:33.3]} 18.
a5 {[%clk 0:01:55.7]} 18... Nc5 {[%clk 0:01:55.6]} 19. Ne5 {[%clk 0:01:46.1]}
19... Bf6 {[%clk 0:01:47]} 20. Nd3 {[%clk 0:01:35.7]} 20... Nd7 {[%clk
0:01:25.1]} 21. Na4 {[%clk 0:01:31.2]} 21... b6 {[%clk 0:01:24.5]} 22. c3 {[%clk
0:01:27.6]} 22... Rhd8 {[%clk 0:01:21.4]} 23. Ra3 {[%clk 0:01:16.3]} 23... Be7
{[%clk 0:01:03.8]} 24. b4 {[%clk 0:01:09.4]} 24... b5 {[%clk 0:00:58.1]} 25.
Nab2 {[%clk 0:01:08.4]} 25... c5 {[%clk 0:00:43.8]} 26. Raa1 {[%clk 0:01:06.1]}
26... c4 {[%clk 0:00:43.4]} 27. Ne1 {[%clk 0:01:05.3]} 27... Ne5 {[%clk
0:00:43.4]} 28. Rxd8 {[%clk 0:01:04]} 28... Rxd8 {[%clk 0:00:43.1]} 29. Rd1
{[%clk 0:01:02.5]} 29... Rxd1 {[%clk 0:00:34]} 30. Kxd1 {[%clk 0:01:03.4]} 30...
Nc6 {[%clk 0:00:34.4]} 31. Nc2 {[%clk 0:01:02.4]} 31... Bf6 {[%clk 0:00:31.2]}
32. Kd2 {[%clk 0:01:02.9]} 32... Kd6 {[%clk 0:00:28.6]} 33. Nd1 {[%clk
0:01:03.5]} 33... h5 {[%clk 0:00:23.4]} 34. Nf2 {[%clk 0:01:04]} 34... Ne5
{[%clk 0:00:22.1]} 35. a6 {[%clk 0:00:36.2]} 35... Nc6 {[%clk 0:00:20.4]} 36.
Na3 {[%clk 0:00:34.9]} 36... Kc7 {[%clk 0:00:14.8]} 37. Nxb5+ {[%clk 0:00:35.4]}
37... Kb6 {[%clk 0:00:14.9]} 38. Nd6 {[%clk 0:00:36.2]} 38... Ne5 {[%clk
0:00:12.8]} 39. Nd1 {[%clk 0:00:27.3]} 39... Nd3 {[%clk 0:00:08]} 40. Nxc4+
{[%clk 0:00:26.7]} 1-0

[Event "Late-Titled-Tuesday-Blitz-September-12-2023"]
[Site "Chess.com"]
[Date "2023.09.12"]
[Round "7"]
[White "traack"]
[Black "Gentlejimmy7"]
[Result "0-1"]
[WhiteElo "2356"]
[BlackElo "2534"]
[TimeControl "180+1"]
[EndTime "15:13:43 PDT"]
[Termination "Gentlejimmy7 won by checkmate"]

1. e4 {[%clk 0:03:00.9]} 1... c5 {[%clk 0:02:54]} 2. Nf3 {[%clk 0:03:01.2]} 2...
e6 {[%clk 0:02:52.9]} 3. d4 {[%clk 0:03:01.6]} 3... cxd4 {[%clk 0:02:53.5]} 4.
Nxd4 {[%clk 0:03:02.5]} 4... a6 {[%clk 0:02:53.4]} 5. c4 {[%clk 0:02:57.9]} 5...
Qc7 {[%clk 0:02:47]} 6. Nc3 {[%clk 0:02:57.7]} 6... Nf6 {[%clk 0:02:45.2]} 7. a3
{[%clk 0:02:57.3]} 7... b6 {[%clk 0:02:40.5]} 8. Bd3 {[%clk 0:02:57]} 8... Bb7
{[%clk 0:02:39.9]} 9. O-O {[%clk 0:02:55.4]} 9... Be7 {[%clk 0:02:31]} 10. Kh1
{[%clk 0:02:54.9]} 10... d6 {[%clk 0:02:28.2]} 11. f4 {[%clk 0:02:54]} 11...
Nbd7 {[%clk 0:02:26.5]} 12. Qe2 {[%clk 0:02:53.5]} 12... Rc8 {[%clk 0:02:18]}
13. Be3 {[%clk 0:02:53.3]} 13... h5 {[%clk 0:02:15.3]} 14. Rac1 {[%clk
0:02:52.6]} 14... Ng4 {[%clk 0:02:10.1]} 15. Bg1 {[%clk 0:02:52.5]} 15... g6
{[%clk 0:02:04.9]} 16. h3 {[%clk 0:02:51.8]} 16... e5 {[%clk 0:01:57.7]} 17. Nb3
{[%clk 0:02:25.8]} 17... Nc5 {[%clk 0:01:37.7]} 18. Bxc5 {[%clk 0:02:12]} 18...
dxc5 {[%clk 0:01:37]} 19. hxg4 {[%clk 0:02:01.6]} 19... hxg4+ {[%clk 0:01:36.4]}
20. Kg1 {[%clk 0:02:02]} 20... exf4 {[%clk 0:01:33.6]} 21. Qxg4 {[%clk
0:01:58.9]} 21... Rh4 {[%clk 0:01:30]} 22. Qf3 {[%clk 0:01:51.1]} 22... Qe5
{[%clk 0:01:27.4]} 23. Nd5 {[%clk 0:01:44.8]} 23... Bxd5 {[%clk 0:01:23.2]} 24.
exd5 {[%clk 0:01:38.2]} 24... Qh8 {[%clk 0:01:19.4]} 25. Kf2 {[%clk 0:01:15]}
25... Qxb2+ {[%clk 0:01:17.2]} 26. Bc2 {[%clk 0:01:07.5]} 26... Kf8 {[%clk
0:00:58.5]} 27. Rfe1 {[%clk 0:00:53.6]} 27... Bf6 {[%clk 0:00:50.7]} 28. Qd3
{[%clk 0:00:44.3]} 28... Bg5 {[%clk 0:00:28]} 29. Rb1 {[%clk 0:00:39.5]} 29...
Qf6 {[%clk 0:00:26.7]} 30. Qf3 {[%clk 0:00:31.2]} 30... Rh2 {[%clk 0:00:19.9]}
31. Kg1 {[%clk 0:00:30]} 31... Qh8 {[%clk 0:00:19.7]} 32. Kf2 {[%clk 0:00:23.9]}
32... Bh4+ {[%clk 0:00:17.7]} 33. Ke2 {[%clk 0:00:23.3]} 33... Re8+ {[%clk
0:00:16.6]} 34. Kd2 {[%clk 0:00:22.7]} 34... Bxe1+ {[%clk 0:00:16.1]} 35. Rxe1
{[%clk 0:00:23.6]} 35... Rxe1 {[%clk 0:00:14.3]} 36. Kxe1 {[%clk 0:00:24.5]}
36... Rh1+ {[%clk 0:00:14.4]} 37. Kd2 {[%clk 0:00:25.1]} 37... Qh4 {[%clk
0:00:11.2]} 38. d6 {[%clk 0:00:22.4]} 38... Qe1+ {[%clk 0:00:09.8]} 39. Kd3
{[%clk 0:00:23.1]} 39... Qe6 {[%clk 0:00:07.2]} 40. Qd5 {[%clk 0:00:21.6]} 40...
Qe3# {[%clk 0:00:05.4]} 0-1

[Event "Late-Titled-Tuesday-Blitz-September-12-2023"]
[Site "Chess.com"]
[Date "2023.09.12"]
[Round "7"]
[White "PawnEatingZombie"]
[Black "chosenpr"]
[Result "0-1"]
[WhiteElo "2190"]
[BlackElo "2373"]
[TimeControl "180+1"]
[EndTime "15:13:45 PDT"]
[Termination "chosenpr won by resignation"]

1. e4 {[%clk 0:02:27.5]} 1... e5 {[%clk 0:02:57.1]} 2. Nf3 {[%clk 0:02:26.7]}
2... Nf6 {[%clk 0:02:56.8]} 3. Nxe5 {[%clk 0:02:24.7]} 3... d6 {[%clk
0:02:57.1]} 4. Nf3 {[%clk 0:02:24.3]} 4... Nxe4 {[%clk 0:02:57.2]} 5. d4 {[%clk
0:02:24.5]} 5... d5 {[%clk 0:02:57.2]} 6. Bd3 {[%clk 0:02:24.6]} 6... Be7 {[%clk
0:02:57.5]} 7. O-O {[%clk 0:02:23.4]} 7... O-O {[%clk 0:02:58.2]} 8. Nc3 {[%clk
0:02:11.4]} 8... Nxc3 {[%clk 0:02:42.4]} 9. bxc3 {[%clk 0:02:10.9]} 9... Nd7
{[%clk 0:02:37.9]} 10. Re1 {[%clk 0:02:09]} 10... c6 {[%clk 0:02:35.1]} 11. c4
{[%clk 0:02:05.6]} 11... Nf6 {[%clk 0:02:32.2]} 12. h3 {[%clk 0:02:02.6]} 12...
Re8 {[%clk 0:02:28.5]} 13. Bf4 {[%clk 0:01:58.4]} 13... Bb4 {[%clk 0:02:23.4]}
14. Rxe8+ {[%clk 0:01:57.2]} 14... Qxe8 {[%clk 0:02:24.3]} 15. Be5 {[%clk
0:01:38.1]} 15... Ne4 {[%clk 0:02:20.1]} 16. cxd5 {[%clk 0:01:26.4]} 16... cxd5
{[%clk 0:02:19.6]} 17. c4 {[%clk 0:01:19.2]} 17... Be6 {[%clk 0:02:15.9]} 18. c5
{[%clk 0:01:15.1]} 18... b6 {[%clk 0:02:01.3]} 19. c6 {[%clk 0:01:07.1]} 19...
Qxc6 {[%clk 0:01:52.3]} 20. Rc1 {[%clk 0:01:05.8]} 20... Qe8 {[%clk 0:01:33.2]}
21. Rc7 {[%clk 0:01:01.8]} 21... Rc8 {[%clk 0:01:30]} 22. Qc2 {[%clk 0:01:01.2]}
22... Rxc7 {[%clk 0:01:07]} 23. Qxc7 {[%clk 0:00:59.7]} 23... h6 {[%clk
0:00:38.1]} 24. Qxa7 {[%clk 0:00:59.1]} 24... Qc6 {[%clk 0:00:31.2]} 25. Qb8+
{[%clk 0:00:36.1]} 25... Bf8 {[%clk 0:00:24.4]} 26. Qc7 {[%clk 0:00:36.1]} 26...
Qa4 {[%clk 0:00:15.3]} 27. Qxb6 {[%clk 0:00:27]} 27... Qxa2 {[%clk 0:00:14.7]}
28. Qd8 {[%clk 0:00:13.4]} 28... Qxf2+ {[%clk 0:00:13.7]} 29. Kh2 {[%clk
0:00:13.9]} 29... Qe3 {[%clk 0:00:09.5]} 30. Bd6 {[%clk 0:00:13]} 30... Nxd6
{[%clk 0:00:09.2]} 31. Bh7+ {[%clk 0:00:11.1]} 31... Kxh7 {[%clk 0:00:09]} 32.
Qxf8 {[%clk 0:00:12]} 32... Qf4+ {[%clk 0:00:08.7]} 33. Kg1 {[%clk 0:00:11]}
33... Ne4 {[%clk 0:00:09.1]} 34. Ne5 {[%clk 0:00:07.2]} 34... Qg5 {[%clk
0:00:07.7]} 35. Nxf7 {[%clk 0:00:05.2]} 35... Qc1+ {[%clk 0:00:05.2]} 36. Kh2
{[%clk 0:00:03.6]} 36... Qf4+ {[%clk 0:00:05.8]} 0-1